[Event "44th Chess Olympiad Open 2022"]
[Site "Chennai"]
[Date "2022.08.06"]
[Round "8.44"]
[White "Cawdery, Daniel"]
[Black "Blackburn, Jonathan L B"]
[Result "1-0"]
[WhiteElo "2417"]
[BlackElo "2176"]
[Annotator "TA"]
[PlyCount "65"]
[EventDate "2022.??.??"]
[TimeControl "60"]

{[%evp 17,64,20,20,-19,14,0,0,0,0,0,8,0,52,31,35,0,81,88,79,81,99,100,91,0,0,
-27,105,131,552,552,535,514,993,950,1539,1410,2259,2370,1746,1739,29986,29987,
29996,29997,29997,29998,29998,29999,29999]} 1. e4 {[%emt 0:00:04][%cal Ye2e4,
Ye4e5]} e6 {[%emt 0:00:03]} 2. d4 {[%emt 0:00:18]} d5 {[%emt 0:00:04]} 3. e5 {
[%emt 0:00:16]} c5 {[%emt 0:00:12]} 4. c3 {[%emt 0:00:04]} Bd7 {[%emt 0:00:00]}
5. Nf3 {[%emt 0:00:21]} Nc6 {[%emt 0:00:12]} 6. Be2 {[%emt 0:01:32]} f6 {
[%emt 0:01:58]} 7. O-O {[%emt 0:01:13]} fxe5 {[%emt 0:00:04]} 8. Nxe5 {[%emt 0:
00:30]} Nxe5 {[%emt 0:00:05]} 9. dxe5 {[%emt 0:00:03]} Qc7 {[%emt 0:00:00]} 10.
Nd2 {[%emt 0:07:22] 10.Re1 is a critical line. C02: French: Advance Variation.}
Ne7 {[%emt 0:05:33][%cal Yg8e7,Ye7c6,Yc6d4] [#]} 11. b4 $146 {[%emt 0:09:20]} (
{Predecessor:} 11. f4 g5 12. fxg5 Qxe5 13. Bh5+ Ng6 14. Nf3 Qc7 15. Qe2 O-O-O
16. Bxg6 hxg6 17. Ne5 {1-0 (39) Monroy,C (2427)-Leccia,T (1707) Europe Echecs
INT 2020}) 11... cxb4 {[%emt 0:09:18]} 12. cxb4 {[%emt 0:00:00] The position
is equal.} Nc6 {[%emt 0:07:26]} 13. b5 {[%emt 0:02:36]} Nd4 {[%emt 0:06:34]}
14. Bb2 {[%emt 0:09:57]} Qxe5 {[%emt 0:07:38]} (14... Nxe2+ $11 15. Qxe2 Qc2)
15. Bh5+ {[%emt 0:05:30]} g6 {[%emt 0:02:35]} 16. Nc4 {[%emt 0:10:13]} (16. Bg4
$5 {[%cal Rd2c4]} Bg7 17. Rb1 $11 (17. Re1 Qd6 $11)) 16... Qxh5 {[%emt 0:02:31]
} (16... dxc4 $11 {remains equal.} 17. Bxd4 Qxh5 18. Qxh5 gxh5 19. Bxh8 Bxb5)
17. Qxd4 $16 {[%emt 0:00:33]} Rg8 {[%emt 0:07:48] [#]} 18. Ne5 {[%emt 0:01:55]
White has strong compensation.} Bd6 {[%emt 0:02:56] [#]} 19. Rfe1 {[%emt 0:00:
54]} Rf8 {[%emt 0:08:27]} 20. f4 {[%emt 0:06:13] Active counter play!} (20. g3
$16 Qg5 21. a4 (21. Nxd7 Kxd7 22. b6 a5 $11)) 20... Qf5 $11 {[%emt 0:03:14]} (
20... Bxb5 21. a4 Rc8 22. Ba3 (22. axb5 Bc5 $17) 22... Bxa3 23. Rxa3 $16) 21.
g3 {[%emt 0:03:39] Strongly threatening a4.} ({Of course not} 21. Nxd7 Kxd7 22.
g3 g5 23. Qg7+ Be7 $17) 21... Bxb5 {[%emt 0:03:09]} (21... g5 $11 {keeps the
balance.} 22. Nc4 Be7) 22. a4 $16 {[%emt 0:00:56]} b6 $2 {[%emt 0:06:36] Loses
the game.} (22... Bc6 $16 {is more resistant.}) 23. Ba3 $18 {[%emt 0:02:08]} ({
Not} 23. axb5 $2 Bc5 24. Nf3 Qg4 $19) 23... Bxa3 {[%emt 0:01:42]} 24. Rxa3 {
[%emt 0:00:00]} Bc4 {[%emt 0:06:09]} (24... Bd7 $142 25. a5 b5) 25. a5 {
[%emt 0:04:21]} ({Worse is} 25. Nxc4 dxc4 26. Rae3 Rf6 $11) 25... Ke7 {[%emt 0:
02:42]} 26. axb6 {[%emt 0:03:50]} axb6 {[%emt 0:00:09]} 27. Rxa8 {[%emt 0:04:
53]} Rxa8 {[%emt 0:00:00]} 28. Qxb6 {[%emt 0:00:04] White threatens Qb7+ and
mate.} Ra2 {[%emt 0:00:00]} 29. Rb1 {[%emt 0:05:27] White mates.} Kf8 {[%emt 0:
03:30]} 30. Qd8+ {[%emt 0:00:20]} Kg7 {[%emt 0:00:04]} 31. Rb7+ {[%emt 0:00:04]
} Kh6 {[%emt 0:00:00]} 32. Qh4+ {[%emt 0:00:07] Skewer} Qh5 {[%emt 0:00:08]}
33. Ng4# {[%emt 0:00:02] Weighted Error Value: White=0.14 (very precise) /
Black=0.83} 1-0

[Event "44th Chess Olympiad Open 2022"]
[Site "Chennai"]
[Date "2022.08.06"]
[Round "8.44"]
[White "Kobese, Watu"]
[Black "Pleasants, Allan J"]
[Result "1-0"]
[WhiteElo "2311"]
[BlackElo "2024"]
[Annotator "RC"]
[PlyCount "105"]
[EventDate "2022.??.??"]
[TimeControl "60"]

1. e4 {[%emt 0:00:06]} g6 {[%emt 0:00:08]} 2. d4 {[%emt 0:00:08]} Bg7 {[%emt 0:
00:00]} 3. Nf3 {[%emt 0:00:08]} d6 {[%emt 0:00:09]} 4. Nc3 {[%emt 0:00:10]} Nf6
{[%emt 0:00:49]} 5. h3 {[%emt 0:00:14]} O-O {[%emt 0:00:19]} 6. Be3 {[%emt 0:
00:00]} a6 {[%emt 0:00:14]} 7. a4 {[%emt 0:00:09]} b6 {[%emt 0:00:19]} 8. Bd3 {
[%emt 0:03:16]} Bb7 {[%emt 0:02:11]} 9. Qd2 {[%emt 0:04:23]} Nbd7 {[%emt 0:00:
00]} 10. Bh6 {[%emt 0:02:20]} e5 {[%emt 0:01:59]} 11. Bxg7 {[%emt 0:05:29]}
Kxg7 {[%emt 0:00:38]} 12. dxe5 {[%emt 0:06:32]} Nxe5 {[%emt 0:07:13]} 13. h4 {
[%emt 0:03:51]} Nxf3+ {[%emt 0:12:42]} 14. gxf3 {[%emt 0:01:26]} Nh5 {[%emt 0:
00:00]} 15. O-O-O {[%emt 0:11:56]} Qf6 {[%emt 0:01:31]} 16. Ne2 {[%emt 0:00:15]
} b5 {[%emt 0:18:55]} 17. a5 {[%emt 0:00:33]} Rae8 {[%emt 0:07:53]} 18. Ng3 {
[%emt 0:00:39]} Nxg3 {[%emt 0:00:09]} 19. fxg3 {[%emt 0:00:06]} h6 {[%emt 0:00:
00]} 20. Rhf1 {[%emt 0:28:31]} Qd4 {[%emt 0:09:02]} 21. h5 {[%emt 0:06:26]} g5
{[%emt 0:07:43]} 22. Kb1 {[%emt 0:03:09]} b4 {[%emt 0:10:03]} 23. f4 {[%emt 0:
00:00]} f6 {[%emt 0:01:22]} 24. Qe2 {[%emt 0:08:08]} Qc5 {[%emt 0:00:44]} 25.
e5 {[%emt 0:00:39]} dxe5 {[%emt 0:01:14]} 26. fxg5 {[%emt 0:00:32]} hxg5 {
[%emt 0:03:30]} 27. Be4 {[%emt 0:04:09]} Bc8 {[%emt 0:00:12]} 28. Rd5 {[%emt 0:
00:00]} Qe7 {[%emt 0:00:08]} 29. Qe3 {[%emt 0:01:19]} Rd8 {[%emt 0:01:23]} 30.
Rxd8 {[%emt 0:00:25]} Rxd8 {[%emt 0:00:13]} 31. Bd3 {[%emt 0:00:11]} Bb7 {
[%emt 0:01:19]} 32. Qa7 {[%emt 0:00:50]} e4 {[%emt 0:01:25]} 33. Bc4 {[%emt 0:
00:00]} Bd5 {[%emt 0:01:30]} 34. Be2 {[%emt 0:01:41]} Bf7 {[%emt 0:00:51]} 35.
Qxa6 {[%emt 0:00:42]} Rd2 {[%emt 0:00:55]} 36. Kc1 {[%emt 0:01:49]} e3 {
[%emt 0:00:18]} 37. h6+ {[%emt 0:00:03]} Kh7 {[%emt 0:00:37]} 38. Bd3+ {
[%emt 0:00:51]} Bg6 {[%emt 0:00:18]} 39. Bxg6+ {[%emt 0:00:18]} Kxg6 {[%emt 0:
00:00]} 40. h7 {[%emt 0:00:12]} Kxh7 {[%emt 0:02:24]} 41. Rxf6 {[%emt 0:04:52]}
Rh2 {[%emt 0:11:44]} 42. Qd3+ {[%emt 0:03:22]} Kh8 {[%emt 0:04:19]} 43. Rf1 {
[%emt 0:02:07]} e2 {[%emt 0:04:51]} 44. Re1 {[%emt 0:00:18]} c5 {[%emt 0:06:57]
} 45. Kd2 {[%emt 0:04:05]} c4 {[%emt 0:00:10]} 46. Qxc4 {[%emt 0:02:24]} Qd8+ {
[%emt 0:00:07]} 47. Ke3 {[%emt 0:02:41]} Qxa5 {[%emt 0:01:17]} 48. Qd4+ {
[%emt 0:00:06]} Kg8 {[%emt 0:00:34]} 49. Rxe2 {[%emt 0:00:11]} Rh7 {[%emt 0:00:
00]} 50. Kd2 {[%emt 0:02:39]} b3+ {[%emt 0:03:35]} 51. c3 {[%emt 0:00:22]} Rf7
{[%emt 0:00:19]} 52. Re5 {[%emt 0:03:01]} Rf2+ {[%emt 0:01:35]} 53. Ke3 {
[%emt 0:00:32]} 1-0

[Event "44th Chess Olympiad Open 2022"]
[Site "Chennai"]
[Date "2022.08.06"]
[Round "8.44"]
[White "Toczek, Grzegorz"]
[Black "Solomon, Kenny"]
[Result "1/2-1/2"]
[WhiteElo "2287"]
[BlackElo "2355"]
[Annotator "TA"]
[PlyCount "89"]
[EventDate "2022.??.??"]
[TimeControl "60"]

{[%evp 9,89,25,21,10,23,16,31,22,12,0,5,24,24,24,0,16,18,0,-25,-29,0,0,0,0,0,
-14,18,-254,-240,-289,-24,-17,-18,-94,-94,-128,-87,-90,-76,-125,-130,-122,-119,
-125,-106,-106,-35,-55,-7,-6,0,0,21,4,41,31,38,0,0,0,61,66,87,0,58,37,40,34,37,
41,34,0,46,12,8,8,12,0,0,0,8,0]} 1. e4 {[%emt 0:00:05]} c5 {[%emt 0:00:08]} 2.
Nf3 {[%emt 0:00:12]} d6 {[%emt 0:00:07]} 3. d4 {[%emt 0:00:15]} cxd4 {[%emt 0:
00:00]} 4. Nxd4 {[%emt 0:00:17]} Nf6 {[%emt 0:00:09]} 5. Nc3 {[%emt 0:00:03]}
a6 {[%emt 0:00:05]} 6. h4 {[%emt 0:01:19] B90: Sicilian Najdorf: Unusual White
6th moves, 6 Be3 Ng4 and 6 Be3 e5.} e5 {[%emt 0:00:11]} 7. Nb3 {[%emt 0:00:07]}
Be6 {[%emt 0:02:44]} 8. f4 {[%emt 0:00:33] White is slightly better.} b5 {
[%emt 0:00:05]} 9. f5 {[%emt 0:01:22]} Bc8 {[%emt 0:01:28]} 10. a4 {[%emt 0:00:
00]} b4 {[%emt 0:11:11]} 11. Nd5 {[%emt 0:00:06]} Nbd7 {[%emt 0:00:30]} (11...
Nxe4 $2 12. Qf3 Bxf5 13. Bd3 $18) 12. Bg5 {[%emt 0:19:25]} Bb7 {[%emt 0:13:27]}
13. Bc4 {[%emt 0:14:14]} Be7 {[%emt 0:00:54] [#]} 14. g3 $146 {[%emt 0:19:46]}
({Predecessor:} 14. Qd3 O-O 15. Bxf6 Nxf6 16. Nxf6+ Bxf6 17. O-O-O Bxh4 18. Bd5
Bg5+ 19. Kb1 Qc7 20. f6 gxf6 {1-0 (35) Shukhman,A (1986)-Getman,T (2271)
Moscow 2021}) 14... Rc8 {[%emt 0:12:41]} (14... Bxd5 $5 15. Bxd5 (15. exd5 Nb6
$15) 15... Rc8 16. Bxf6 Nxf6 $15) 15. Bxf6 {[%emt 0:00:13]} Nxf6 {[%emt 0:00:
00]} 16. Nxf6+ {[%emt 0:00:08]} Bxf6 {[%emt 0:00:38]} 17. Qd3 {[%emt 0:00:51]}
O-O {[%emt 0:07:45][%cal Yd6d5]} (17... Qc7 {looks sharper.} 18. Bxa6 Bxa6 19.
Qxa6 Qxc2 20. Qb5+ Ke7) 18. Rh2 $2 {[%emt 0:01:20] [#]} (18. O-O-O $11) 18...
d5 $1 $19 {[%emt 0:12:12]} 19. Bxa6 {[%emt 0:09:28] [#]} Bxa6 {[%emt 0:00:04]}
(19... Qb6 $1 $19 20. Bxb7 Qg1+ 21. Qf1 Qxh2 22. Bxc8 Qxg3+ 23. Qf2 Qg4) 20.
Qxa6 $11 {[%emt 0:00:05]} dxe4 {[%emt 0:00:40]} 21. Rd2 {[%emt 0:00:00]
Against Qd7} (21. Rd1 $11 Qe7 22. a5) 21... Qc7 $17 {[%emt 0:03:35]} 22. Qe2 {
[%emt 0:01:53]} e3 {[%emt 0:18:56]} 23. Qxe3 {[%emt 0:01:22]} e4 $1 {[%emt 0:
00:01]} 24. Kf2 {[%emt 0:06:54]} (24. Nd4 $142) 24... Bxb2 {[%emt 0:00:00]} 25.
Rad1 {[%emt 0:00:08]} Qe5 {[%emt 0:01:44] And now ...Rc3 would win.} 26. Qf4 {
[%emt 0:02:26]} Qxf4+ {[%emt 0:04:48]} 27. gxf4 {[%emt 0:00:06]} Rfe8 {[%emt 0:
00:04]} (27... h5 $17 28. Rd5 Rxc2+ 29. R1d2 Rxd2+ 30. Nxd2 Bf6) 28. Re2 $15 {
[%emt 0:01:10]} Kf8 {[%emt 0:01:31]} (28... h5 $15) 29. h5 $11 {[%emt 0:02:22]}
Rc6 {[%emt 0:03:25]} 30. Kg3 {[%emt 0:00:05]} Bc3 {[%emt 0:00:00]} 31. a5 {
[%emt 0:00:39]} Bf6 {[%emt 0:00:51]} 32. Rd5 {[%emt 0:01:11]} Rec8 {[%emt 0:04:
11]} 33. Nd4 {[%emt 0:01:18]} Rc3+ {[%emt 0:00:30]} 34. Kg4 {[%emt 0:00:04]}
Ra3 {[%emt 0:00:43]} ({Better is} 34... e3 $11) 35. Nb3 $1 $14 {[%emt 0:00:42]}
Ra2 {[%emt 0:00:12]} 36. Rc5 {[%emt 0:00:41]} (36. Nc5 $16) 36... Re8 {[%emt 0:
00:46]} (36... Rxc5 $1 $11 37. Nxc5 Be7) 37. Rc4 {[%emt 0:00:00]} Bc3 {[%emt 0:
00:01]} 38. Rcxe4 {[%emt 0:03:35]} Rxe4 {[%emt 0:00:27]} 39. Rxe4 {[%emt 0:00:
01] Strongly threatening Nc5.} Rxc2 {[%emt 0:00:13] Endgame KRB-KRN} 40. Nc5 {
[%emt 0:00:57] White threatens Nd7+ and mate.} (40. a6 $5 {[%cal Rb3c5]}) 40...
f6 {[%emt 0:01:08]} (40... g6 $1 $11) 41. Ne6+ {[%emt 0:02:49]} Kf7 {[%emt 0:
05:54] The position is equal.} 42. Nd8+ {[%emt 0:00:00]} Kf8 {[%emt 0:00:07]}
43. Ne6+ {[%emt 0:00:05]} Kf7 {[%emt 0:00:21]} 44. Nd8+ {[%emt 0:05:55]} Kf8 {
[%emt 0:09:45]} 45. Ne6+ {[%emt 0:00:19] Weighted Error Value: White=0.28 
(precise) /Black=0.29 (precise)} 1/2-1/2

[Event "44th Chess Olympiad Open 2022"]
[Site "Chennai"]
[Date "2022.08.06"]
[Round "8.44"]
[White "Kett, Tim"]
[Black "Barrish, Daniel"]
[Result "1-0"]
[WhiteElo "2197"]
[BlackElo "2283"]
[Annotator "NA RC"]
[PlyCount "61"]
[EventDate "2022.??.??"]
[TimeControl "60"]

1. e4 {[%emt 0:00:08]} c5 {[%emt 0:00:17]} 2. Nf3 {[%emt 0:00:07]} d6 {[%emt 0:
00:00]} 3. d4 {[%emt 0:00:05]} cxd4 {[%emt 0:00:03]} 4. Nxd4 {[%emt 0:00:04]}
Nf6 {[%emt 0:00:07]} 5. Nc3 {[%emt 0:00:12]} a6 {[%emt 0:00:09]} 6. Bg5 {
[%emt 0:00:09]} e6 {[%emt 0:00:11]} 7. f4 {[%emt 0:00:10]} Be7 {[%emt 0:00:18]}
8. Qf3 {[%emt 0:00:14]} Qc7 {[%emt 0:00:17]} 9. O-O-O {[%emt 0:00:21]} Nbd7 {
[%emt 0:00:13]} 10. Bd3 {[%emt 0:00:19]} b5 {[%emt 0:01:23]} 11. Rhe1 {[%emt 0:
00:00]} Bb7 {[%emt 0:00:12]} 12. Qg3 {[%emt 0:04:36]} b4 {[%emt 0:32:16]} 13.
Nd5 {[%emt 0:01:20]} exd5 {[%emt 0:00:19]} 14. e5 {[%emt 0:07:49]} dxe5 {
[%emt 0:09:07]} 15. fxe5 {[%emt 0:03:06]} Ne4 {[%emt 0:07:48]} 16. Bxe4 {
[%emt 0:01:23]} dxe4 {[%emt 0:09:35]} 17. Bxe7 {[%emt 0:10:26]} Qxe5 {[%emt 0:
00:00]} 18. Qxe5 {[%emt 0:01:28]} Nxe5 {[%emt 0:00:04]} 19. Nf5 {[%emt 0:00:18]
} g6 {[%emt 0:06:43]} 20. Bf6 {[%emt 0:00:31]} gxf5 {[%emt 0:00:12]} 21. Bxh8 {
[%emt 0:00:16]} Nd7 {[%emt 0:05:00]} 22. Rf1 {[%emt 0:07:19]} Ke7 {[%emt 0:00:
00]} 23. Bd4 {[%emt 0:00:38]} Ke6 {[%emt 0:00:29]} 24. Rf4 {[%emt 0:13:18]} Rg8
{[%emt 0:00:21]} 25. g3 {[%emt 0:00:08]} Rg4 {[%emt 0:11:56]} 26. Rdf1 {
[%emt 0:03:33]} Rg5 {[%emt 0:00:03]} 27. Rh4 {[%emt 0:03:15]} Nf8 {[%emt 0:00:
00]} 28. Rh6+ {[%emt 0:03:29]} Rg6 {[%emt 0:01:40]} 29. Rh5 {[%emt 0:00:55]}
Kd5 {[%emt 0:00:31]} 30. Be3 {[%emt 0:03:34]} Bc8 {[%emt 0:00:10]} 31. Rd1+ {
[%emt 0:00:57]} 1-0

[Event "44th Chess Olympiad Open 2022"]
[Site "Chennai"]
[Date "2022.08.06"]
[Round "8.45"]
[White "Eiti, Bashir"]
[Black "Degenbaev, Aziz"]
[Result "1-0"]
[WhiteElo "2337"]
[BlackElo "2215"]
[Annotator "RC"]
[PlyCount "67"]
[EventDate "2022.??.??"]
[TimeControl "60"]

1. d4 {[%emt 0:00:10]} Nf6 {[%emt 0:00:07]} 2. Bf4 {[%emt 0:00:34]} c5 {
[%emt 0:00:31]} 3. c3 {[%emt 0:04:08]} g6 {[%emt 0:03:12]} 4. dxc5 {[%emt 0:00:
00]} Bg7 {[%emt 0:00:48]} 5. Nd2 {[%emt 0:01:29]} O-O {[%emt 0:00:32]} 6. e4 {
[%emt 0:01:03]} Nc6 {[%emt 0:17:29]} 7. Be2 {[%emt 0:09:25]} a5 {[%emt 0:11:00]
} 8. Ngf3 {[%emt 0:06:03]} a4 {[%emt 0:02:47]} 9. a3 {[%emt 0:19:27]} b6 {
[%emt 0:22:22]} 10. cxb6 {[%emt 0:01:48]} d6 {[%emt 0:00:10]} 11. Nc4 {[%emt 0:
00:00]} Nxe4 {[%emt 0:14:30]} 12. Qd5 {[%emt 0:14:56]} Nxc3 {[%emt 0:13:57]}
13. Qxc6 {[%emt 0:00:03]} Bd7 {[%emt 0:00:32]} 14. Qb7 {[%emt 0:00:31]} Rb8 {
[%emt 0:06:41]} 15. Qc7 {[%emt 0:00:07]} Qe8 {[%emt 0:00:10]} 16. bxc3 {
[%emt 0:09:18]} Bxc3+ {[%emt 0:00:12]} 17. Bd2 {[%emt 0:00:17]} Bxa1 {[%emt 0:
00:00]} 18. b7 {[%emt 0:04:28]} Qd8 {[%emt 0:00:53]} 19. Qxd8 {[%emt 0:00:15]}
Rfxd8 {[%emt 0:00:01]} 20. O-O {[%emt 0:00:25]} Bf6 {[%emt 0:01:01]} 21. Na5 {
[%emt 0:00:17]} Bb2 {[%emt 0:02:58]} 22. Bb4 {[%emt 0:00:05]} Rf8 {[%emt 0:00:
00]} 23. Rb1 {[%emt 0:01:14]} Bf6 {[%emt 0:00:01]} 24. Ba6 {[%emt 0:02:09]} Bf5
{[%emt 0:01:06]} 25. Re1 {[%emt 0:00:32]} Bd7 {[%emt 0:00:28]} 26. Rc1 {
[%emt 0:00:15]} Rfd8 {[%emt 0:00:48]} 27. Nc6 {[%emt 0:00:57]} Bxc6 {[%emt 0:
00:00]} 28. Rxc6 {[%emt 0:00:05]} Kg7 {[%emt 0:00:32]} 29. Rc8 {[%emt 0:00:58]}
Bb2 {[%emt 0:00:26]} 30. Nd2 {[%emt 0:01:16]} Kf6 {[%emt 0:00:36]} 31. Rxd8 {
[%emt 0:00:55]} Rxd8 {[%emt 0:00:01]} 32. Nc4 {[%emt 0:00:14]} Bd4 {[%emt 0:00:
00]} 33. Na5 {[%emt 0:00:10]} Bb6 {[%emt 0:01:08]} 34. Nc6 {[%emt 0:00:15]} 1-0

[Event "44th Chess Olympiad Open 2022"]
[Site "Chennai"]
[Date "2022.08.06"]
[Round "8.45"]
[White "Markov, Mikhail"]
[Black "Chekh Adm Khedr, Aram"]
[Result "1-0"]
[WhiteElo "2333"]
[BlackElo "2147"]
[Annotator "RC"]
[PlyCount "47"]
[EventDate "2022.??.??"]
[TimeControl "60"]

1. c4 {[%emt 0:00:14]} e5 {[%emt 0:00:56]} 2. a3 {[%emt 0:00:31]} b5 {[%emt 0:
00:00]} 3. cxb5 {[%emt 0:03:17]} d5 {[%emt 0:04:39]} 4. d4 {[%emt 0:01:31]} e4
{[%emt 0:00:05]} 5. Nc3 {[%emt 0:00:37]} a6 {[%emt 0:08:10]} 6. Bf4 {[%emt 0:
00:00]} Nf6 {[%emt 0:07:12]} 7. e3 {[%emt 0:10:04]} Be7 {[%emt 0:06:10]} 8.
bxa6 {[%emt 0:14:49]} O-O {[%emt 0:01:48]} 9. Bb5 {[%emt 0:02:49]} Bd6 {
[%emt 0:12:37]} 10. Bxd6 {[%emt 0:00:28]} Qxd6 {[%emt 0:00:01]} 11. b4 {
[%emt 0:00:26]} Nxa6 {[%emt 0:04:48]} 12. Bxa6 {[%emt 0:06:00]} Rxa6 {[%emt 0:
00:00]} 13. Na4 {[%emt 0:03:27]} Bg4 {[%emt 0:00:39]} 14. Qb3 {[%emt 0:00:05]}
Nh5 {[%emt 0:13:18]} 15. Nc3 {[%emt 0:11:38]} Rc6 {[%emt 0:05:40]} 16. b5 {
[%emt 0:05:42]} Rc4 {[%emt 0:00:17]} 17. Nxe4 {[%emt 0:01:31]} Qe7 {[%emt 0:00:
00]} 18. Nd2 {[%emt 0:01:32]} Rxd4 {[%emt 0:05:33]} 19. Ngf3 {[%emt 0:00:23]}
Rxd2 {[%emt 0:02:05]} 20. Nxd2 {[%emt 0:02:03]} Nf4 {[%emt 0:00:58]} 21. O-O {
[%emt 0:01:18]} Nxg2 {[%emt 0:06:50]} 22. Kxg2 {[%emt 0:00:47]} Qh4 {[%emt 0:
00:00]} 23. e4 {[%emt 0:02:46]} Qg5 {[%emt 0:00:56]} 24. Qg3 {[%emt 0:01:43]}
1-0

[Event "44th Chess Olympiad Open 2022"]
[Site "Chennai"]
[Date "2022.08.06"]
[Round "8.45"]
[White "Zhakshylykov, Erzhan"]
[Black "Koniahli, Malek."]
[Result "0-1"]
[WhiteElo "2332"]
[BlackElo "2238"]
[Annotator "RC"]
[PlyCount "96"]
[EventDate "2022.??.??"]
[TimeControl "60"]

1. d4 {[%emt 0:00:04]} d5 {[%emt 0:00:09]} 2. c4 {[%emt 0:00:11]} c6 {[%emt 0:
00:00]} 3. Nc3 {[%emt 0:00:08]} Nf6 {[%emt 0:00:06]} 4. cxd5 {[%emt 0:00:19]}
cxd5 {[%emt 0:00:07]} 5. Nf3 {[%emt 0:00:09]} Nc6 {[%emt 0:00:05]} 6. Bf4 {
[%emt 0:00:08]} a6 {[%emt 0:00:18]} 7. Rc1 {[%emt 0:00:45]} Bf5 {[%emt 0:00:40]
} 8. e3 {[%emt 0:00:26]} e6 {[%emt 0:01:38]} 9. Qb3 {[%emt 0:02:38]} Ra7 {
[%emt 0:01:19]} 10. Ne5 {[%emt 0:07:28]} Nxe5 {[%emt 0:09:56]} 11. Bxe5 {
[%emt 0:00:43]} Nd7 {[%emt 0:00:39]} 12. Bg3 {[%emt 0:08:05]} Be7 {[%emt 0:00:
00]} 13. Be2 {[%emt 0:03:01]} O-O {[%emt 0:02:12]} 14. O-O {[%emt 0:05:38]} Nf6
{[%emt 0:03:05]} 15. Bh4 {[%emt 0:34:38]} b5 {[%emt 0:19:40]} 16. Bxf6 {
[%emt 0:00:11]} Bxf6 {[%emt 0:05:15]} 17. a4 {[%emt 0:05:42]} bxa4 {[%emt 0:00:
00]} 18. Nxa4 {[%emt 0:00:05]} e5 {[%emt 0:09:23]} 19. dxe5 {[%emt 0:00:53]}
Bxe5 {[%emt 0:00:08]} 20. Rfd1 {[%emt 0:01:41]} Be6 {[%emt 0:07:23]} 21. Nc5 {
[%emt 0:03:15]} Qf6 {[%emt 0:02:23]} 22. Qb6 {[%emt 0:12:36]} Raa8 {[%emt 0:00:
00]} 23. b3 {[%emt 0:02:23]} d4 {[%emt 0:17:29]} 24. e4 {[%emt 0:05:10]} Rad8 {
[%emt 0:03:09]} 25. Nd3 {[%emt 0:00:58]} Rb8 {[%emt 0:01:55]} 26. Qxa6 {
[%emt 0:02:48]} Rxb3 {[%emt 0:00:26]} 27. g3 {[%emt 0:01:06]} Bb8 {[%emt 0:00:
00]} 28. Qa5 {[%emt 0:01:22]} Qg6 {[%emt 0:02:40]} 29. e5 {[%emt 0:01:19]} Qe4
{[%emt 0:00:46]} 30. Qd2 {[%emt 0:00:04]} Ra3 {[%emt 0:04:17]} 31. Re1 {
[%emt 0:01:07]} Ra2 {[%emt 0:01:39]} 32. Qf4 {[%emt 0:00:31]} Qa8 {[%emt 0:00:
00]} 33. Bf3 {[%emt 0:00:11]} Qa3 {[%emt 0:00:33]} 34. Qe4 {[%emt 0:00:58]} g6
{[%emt 0:00:34]} 35. g4 {[%emt 0:00:25]} Rd8 {[%emt 0:00:28]} 36. Nf4 {[%emt 0:
00:00]} d3 {[%emt 0:00:23]} 37. Nxe6 {[%emt 0:00:25]} d2 {[%emt 0:00:17]} 38.
Nxd8 {[%emt 0:01:09]} dxc1=Q {[%emt 0:00:06]} 39. Rxc1 {[%emt 0:00:40]} Qxc1+ {
[%emt 0:00:03]} 40. Kg2 {[%emt 0:00:04]} Qc5 {[%emt 0:00:22]} 41. Qf4 {[%emt 0:
00:00]} Qxf2+ {[%emt 0:31:28]} 42. Kh3 {[%emt 0:00:06]} Ra7 {[%emt 0:00:14]}
43. Nc6 {[%emt 0:00:00]} Ra3 {[%emt 0:00:00]} 44. Ne7+ {[%emt 0:00:00]} Kf8 {
[%emt 0:00:00]} 45. Nxg6+ {[%emt 0:00:00]} hxg6 {[%emt 0:00:00]} 46. Qb4+ {
[%emt 0:00:00]} Kg7 {[%emt 0:00:00]} 47. Qxa3 {[%emt 0:00:00]} Bxe5 {[%emt 0:
00:00]} 48. Bg2 {[%emt 0:00:00]} Qf4 {[%emt 0:00:29]} 0-1

[Event "44th Chess Olympiad Open 2022"]
[Site "Chennai"]
[Date "2022.08.06"]
[Round "8.45"]
[White "Fandi, Mazen."]
[Black "Abdyjapar, Asyl"]
[Result "0-1"]
[WhiteElo "1715"]
[BlackElo "2306"]
[Annotator "RC"]
[PlyCount "102"]
[EventDate "2022.??.??"]
[TimeControl "60"]

1. e4 {[%emt 0:03:35]} c6 {[%emt 0:00:22]} 2. d4 {[%emt 0:00:54]} d5 {[%emt 0:
00:00]} 3. exd5 {[%emt 0:01:42]} cxd5 {[%emt 0:00:03]} 4. Bd3 {[%emt 0:00:37]}
Nc6 {[%emt 0:00:06]} 5. c3 {[%emt 0:00:39]} Qc7 {[%emt 0:00:04]} 6. Nf3 {
[%emt 0:00:54]} Bg4 {[%emt 0:00:06]} 7. O-O {[%emt 0:01:00]} e6 {[%emt 0:00:03]
} 8. h3 {[%emt 0:00:51]} Bh5 {[%emt 0:00:04]} 9. Be3 {[%emt 0:00:47]} Nf6 {
[%emt 0:00:19]} 10. Nbd2 {[%emt 0:02:17]} Bg6 {[%emt 0:02:04]} 11. Qb1 {
[%emt 0:01:02]} Bd6 {[%emt 0:00:12]} 12. Re1 {[%emt 0:02:04]} O-O {[%emt 0:00:
00]} 13. Bxg6 {[%emt 0:03:39]} hxg6 {[%emt 0:00:13]} 14. Qd3 {[%emt 0:02:00]}
b5 {[%emt 0:00:18]} 15. b4 {[%emt 0:01:12]} a5 {[%emt 0:00:04]} 16. a3 {
[%emt 0:00:23]} Rab8 {[%emt 0:00:44]} 17. Nb3 {[%emt 0:01:05]} Ne4 {[%emt 0:00:
00]} 18. Nc5 {[%emt 0:04:56]} Bxc5 {[%emt 0:00:46]} 19. dxc5 {[%emt 0:01:47]}
Rfd8 {[%emt 0:00:33]} 20. a4 {[%emt 0:02:56]} bxa4 {[%emt 0:05:26]} 21. b5 {
[%emt 0:02:36]} Ne7 {[%emt 0:05:18]} 22. b6 {[%emt 0:08:07]} Qc8 {[%emt 0:00:
00]} 23. Qb5 {[%emt 0:01:15]} f6 {[%emt 0:05:14]} 24. c4 {[%emt 0:02:30]} Qc6 {
[%emt 0:03:10]} 25. Qxc6 {[%emt 0:01:06]} Nxc6 {[%emt 0:00:01]} 26. Nd4 {
[%emt 0:01:11]} Nxd4 {[%emt 0:09:00]} 27. Bxd4 {[%emt 0:02:41]} e5 {[%emt 0:00:
00]} 28. c6 {[%emt 0:01:02]} exd4 {[%emt 0:03:24]} 29. c7 {[%emt 0:00:23]} Rdc8
{[%emt 0:01:19]} 30. cxb8=Q {[%emt 0:01:00]} Rxb8 {[%emt 0:00:02]} 31. cxd5 {
[%emt 0:00:50]} Nc5 {[%emt 0:00:33]} 32. Red1 {[%emt 0:08:26]} Rxb6 {[%emt 0:
00:00]} 33. Rxd4 {[%emt 0:00:13]} Nb3 {[%emt 0:00:33]} 34. Raxa4 {[%emt 0:00:
00]} Nxd4 {[%emt 0:00:10]} 35. Rxd4 {[%emt 0:00:06]} Kf7 {[%emt 0:00:10]} 36.
Kf1 {[%emt 0:04:29]} Ra6 {[%emt 0:02:02]} 37. Ke2 {[%emt 0:01:09]} a4 {[%emt 0:
00:00]} 38. Rd2 {[%emt 0:00:07]} a3 {[%emt 0:00:07]} 39. Ra2 {[%emt 0:00:07]}
Ke7 {[%emt 0:00:04]} 40. Kd3 {[%emt 0:00:09]} Kd6 {[%emt 0:00:01]} 41. Kc4 {
[%emt 0:31:09]} g5 {[%emt 0:30:10]} 42. Kb5 {[%emt 0:01:49]} Ra8 {[%emt 0:00:
00]} 43. Kc4 {[%emt 0:00:09]} f5 {[%emt 0:00:18]} 44. Kb3 {[%emt 0:01:19]} Kxd5
{[%emt 0:00:13]} 45. Rd2+ {[%emt 0:00:09]} Ke4 {[%emt 0:00:16]} 46. Ka2 {
[%emt 0:00:25]} Ra6 {[%emt 0:00:17]} 47. Re2+ {[%emt 0:01:21]} Kd3 {[%emt 0:00:
00]} 48. Re5 {[%emt 0:00:51]} g6 {[%emt 0:00:05]} 49. g4 {[%emt 0:01:07]} f4 {
[%emt 0:00:11]} 50. f3 {[%emt 0:03:10]} Kd2 {[%emt 0:00:21]} 51. Re8 {[%emt 0:
00:00]} Rc6 {[%emt 0:00:47]} 0-1